bitfinex/quotes_ETHUSD_20250914
["timestamp","ask_amount","ask_price","bid_price","bid_amount"]
[1757845186114,0.002,4663.3,4663.2,11.03062254]
[1757845186315,0.002,4663.3,4663.2,10.73102254]
[1757845187011,0.002,4663.3,4663.2,11.49562254]
[1757845187822,0.002,4663.3,4663.2,11.97162254]
[1757845201559,0.002,4663.3,4663.2,11.49562254]
[1757845204151,0.3029,4663.3,4663.2,10.73102254]
[1757845204448,0.7695,4663.3,4663.2,7.17902254]
[1757845204646,0.7695,4663.3,4663.2,10.72802254]
[1757845205225,0.3029,4663.3,4663.2,10.72802254]
[1757845205430,0.002,4663.3,4663.2,10.72802254]
[1757845208266,0.2452,4663.3,4663.2,10.72802254]
[1757845208640,0.7118,4663.3,4663.2,10.72802254]
[1757845209849,0.002,4663.3,4663.2,10.72802254]
[1757845210630,0.002,4663.3,4663.2,11.48542254]
[1757845212083,0.002,4663.3,4663.2,11.03072254]
[1757845212266,0.002,4663.3,4663.2,11.96732254]
[1757845214061,0.002,4663.3,4663.2,11.48542254]
[1757845214737,0.002,4663.3,4663.2,11.03072254]
[1757845215139,0.002,4663.3,4663.2,10.72867399]
[1757845217073,0.002,4663.3,4663.2,11.01527399]
[1757845217250,0.002,4663.3,4663.2,11.48647399]
[1757845220178,0.002,4663.3,4663.2,11.01527399]
[1757845220747,0.002,4663.3,4663.2,11.48647399]
[1757845222000,0.002,4663.3,4663.2,11.01535154]
[1757845222788,0.002,4663.3,4663.2,11.48655154]
[1757845224707,0.002,4663.3,4663.2,10.72875154]
[1757845225114,0.7435,4663.3,4663.2,10.72875154]
[1757845225295,0.7435,4663.3,4663.2,9.89964699]
[1757845225296,1.1916,4663.3,4663.2,9.89964699]
[1757845228105,0.7435,4663.3,4663.2,9.89964699]
[1757845233506,0.252,4663.3,4663.2,9.89964699]
[1757845233690,0.002,4663.3,4663.2,9.89964699]
[1757845234291,0.002,4663.3,4663.2,11.26856444]
[1757845234909,0.002,4663.3,4663.2,11.56856444]
[1757845235210,0.002,4663.3,4663.2,12.01056444]
[1757845235729,0.002,4663.3,4663.2,12.46746444]
[1757845235896,0.002,4663.3,4663.2,12.71858338]
[1757845237681,0.002,4663.3,4663.2,12.46746444]
[1757845238236,0.002,4663.3,4663.2,12.46747288]
[1757845240079,0.002,4664.3,4664.2,5.93599039]
[1757845240278,0.002,4664.3,4664.2,9.68479566]
[1757845240509,0.002,4664.3,4664.2,10.53319566]
[1757845240899,0.002,4664.3,4664.2,11.07098943]
[1757845241112,0.002,4664.3,4664.2,12.43818425]
[1757845243929,0.002,4664.3,4664.2,11.69618425]
[1757845244294,0.261,4664.3,4664.2,11.69618425]
[1757845244686,0.7169,4664.3,4664.2,11.69618425]
[1757845245514,0.261,4664.3,4664.2,11.69618425]
[1757845245708,0.002,4664.3,4664.2,11.69618425]
[1757845248330,0.002,4664.3,4664.2,12.45168425]
[1757845249901,0.002,4664.3,4664.2,11.98358425]
[1757845250127,0.002,4664.3,4664.2,12.92168425]
[1757845250327,0.002,4664.3,4664.2,12.45168425]
[1757845252336,0.002,4664.3,4664.2,12.45136272]
[1757845253908,0.002,4664.3,4664.2,12.92136272]
[1757845254638,0.002,4664.3,4664.2,13.17248166]
[1757845258829,0.002,4664.3,4664.2,12.92136272]
[1757845262543,0.002,4664.3,4664.2,12.92120052]
[1757845263859,0.002,4664.3,4664.2,12.45120052]
[1757845266242,0.002,4664.3,4664.2,12.90230052]
[1757845266439,0.002,4664.9,4664.4,0.792]
[1757845266757,0.4961,4665.9,4665.3,5.93548487]
[1757845266962,0.4961,4665.9,4665.3,9.97420018]
[1757845267166,0.4961,4665.9,4665.3,10.44430018]
[1757845267364,0.4961,4665.9,4665.3,11.91269555]
[1757845267660,0.4961,4665.9,4665.3,11.93869555]
[1757845268653,0.4961,4665.9,4665.7,2.93530111]
[1757845268654,0.409,4665.8,4665.7,2.93530111]
[1757845268965,1e-08,4665.9,4665.8,5.93525517]
[1757845269170,1e-08,4666.3,4666.2,5.93507145]
[1757845269377,0.4961,4666.7,4666.2,8.09970777]
[1757845269687,0.4961,4666.7,4666.5,3.792]
[1757845269961,0.4961,4666.7,4666.6,9.68710306]
[1757845270159,0.5951,4666.7,4666.6,9.68710306]
[1757845270351,0.7876,4666.7,4666.6,9.68710306]
[1757845270557,0.7876,4666.7,4666.6,10.18320306]
[1757845271064,0.002,4667.1,4667.0,2.93470409]
[1757845271252,0.002,4667.1,4667.0,9.68677534]
[1757845271446,0.4121,4667.1,4667.0,9.68677534]
[1757845271761,0.5951,4667.1,4667.0,9.99787534]
[1757845272362,0.002,4667.1,4667.0,9.99787534]
[1757845272563,0.7876,4667.1,4667.0,9.99787534]
[1757845276642,0.7876,4667.1,4667.0,9.90420409]
[1757845278067,0.906,4667.1,4667.0,9.90420409]
[1757845278702,0.906,4667.1,4667.0,9.90920409]
[1757845279070,0.906,4667.1,4667.0,6.24580409]
[1757845280481,0.7876,4667.1,4667.0,6.24580409]
[1757845283311,0.7876,4667.1,4667.0,6.44574734]
[1757845290513,0.7876,4667.1,4667.0,6.44592761]
[1757845297880,0.002,4667.1,4667.0,6.44592761]
[1757845300214,0.7427,4667.1,4667.0,4.30322352]
[1757845300415,0.98317683,4667.1,4667.0,0.51122352]
[1757845300591,0.98317683,4667.1,4667.0,0.20012352]
[1757845300795,1.29575025,4667.1,4667.0,0.20012352]
[1757845301204,1.17537342,4667.1,4667.0,0.20066038]
[1757845301508,6.99144898,4667.1,4667.0,0.20066038]
[1757845301697,6.87956652,4667.1,4667.0,0.20066038]
[1757845301898,2.14275,4666.9,4666.8,0.001]
[1757845302109,3.90716738,4666.9,4666.8,0.001]
[1757845302319,5.84523903,4666.9,4666.8,0.001]
[1757845302519,6.04592999,4666.9,4666.8,0.001]
[1757845302691,5.84523903,4666.9,4666.8,0.001]
[1757845304897,3.58068903,4666.9,4666.8,0.001]
[1757845305101,6.05741738,4666.9,4666.8,0.001]
[1757845305623,8.20016738,4666.9,4666.8,0.001]
[1757845309138,8.32196738,4666.9,4666.8,0.001]
[1757845309705,8.32180191,4666.9,4666.8,0.001]
[1757845310351,8.52219692,4666.9,4666.8,0.001]
[1757845310529,9.61958974,4666.9,4666.8,0.001]
[1757845311541,9.70534558,4666.9,4666.8,0.001]
[1757845314413,9.70522132,4666.9,4666.8,0.001]
[1757845320648,9.58509367,4666.9,4666.8,0.001]
[1757845320849,9.70516907,4666.9,4666.8,0.001]
[1757845321063,9.70716907,4666.9,4666.8,0.001]
[1757845321369,12.70716907,4666.9,4666.8,0.001]
[1757845322239,19.72716907,4666.9,4666.8,0.001]
[1757845324893,19.72707607,4666.9,4666.8,0.001]
[1757845325090,19.60527607,4666.9,4666.8,0.001]
[1757845325495,19.15537607,4666.9,4666.8,0.001]
[1757845325787,15.86727607,4666.9,4666.8,0.001]
[1757845325988,15.78152023,4666.9,4666.8,0.001]
[1757845326489,12.22652023,4666.9,4666.8,0.001]
[1757845326784,15.78152023,4666.9,4666.8,0.4609]
[1757845327288,15.78152005,4666.9,4666.8,0.001]
[1757845327491,16.34122005,4666.9,4666.8,0.001]
[1757845328391,15.78152005,4666.9,4666.8,0.001]
[1757845329086,16.34122005,4666.9,4666.8,0.001]
[1757845329298,15.78152005,4666.9,4666.8,0.001]
[1757845331299,16.34122005,4666.9,4666.8,0.001]
[1757845334778,16.65022005,4666.9,4666.8,0.001]
[1757845335109,20.02903783,4666.9,4666.8,0.001]
[1757845335270,20.60974997,4666.9,4666.8,0.001]
[1757845341273,21.40174997,4666.9,4666.8,0.001]
[1757845342696,22.68774997,4666.9,4666.8,0.001]
[1757845346612,22.37874997,4666.9,4666.8,0.001]
[1757845347115,22.37885323,4666.9,4666.8,0.001]
[1757845349896,2.14302552,4666.3,4665.8,0.4949]
[1757845350093,2.14320924,4665.9,4665.8,0.001]
[1757845350320,7.46233863,4665.9,4665.8,0.001]
[1757845350549,7.66276752,4665.9,4665.8,0.001]
[1757845350813,8.15666752,4665.9,4665.8,0.2944]
[1757845351895,8.15666752,4665.9,4665.8,0.7563]
[1757845352107,9.20807862,4665.9,4665.8,0.7563]
[1757845353643,9.20807862,4665.9,4665.8,0.001]
[1757845353813,20.02177862,4665.9,4665.8,0.001]
[1757845354843,20.47357862,4665.9,4665.8,0.001]
[1757845355617,20.93445719,4665.9,4665.8,0.001]
[1757845356440,21.72645719,4665.9,4665.8,0.001]
[1757845360241,21.27465719,4665.9,4665.8,0.001]
[1757845360424,21.72645719,4665.9,4665.8,0.001]
[1757845364232,21.27465719,4665.9,4665.8,0.001]
[1757845369047,20.48095719,4665.9,4665.8,0.001]
[1757845369262,20.48095719,4665.9,4665.3,0.001]
[1757845369263,2.14343893,4665.4,4665.3,0.4526]
[1757845369427,16.35094609,4665.4,4665.3,0.4526]
[1757845369623,17.01221967,4665.4,4665.3,0.7599]
[1757845369822,17.01221967,4665.4,4665.3,1.2259]
[1757845370025,17.46481967,4665.4,4665.3,1.2259]
[1757845372664,17.46423754,4665.4,4665.3,1.2259]
[1757845375064,17.46423754,4665.4,4665.3,0.7743]
[1757845375452,17.46423754,4665.4,4665.3,0.3083]
[1757845379082,13.91123754,4665.4,4665.3,1.2252]
[1757845379266,16.94889365,4665.4,4665.3,1.2252]
[1757845380673,16.94904304,4665.4,4665.3,1.2252]
[1757845382503,13.39704304,4665.4,4665.3,1.2252]
[1757845382708,16.94904304,4665.4,4665.3,1.2252]
[1757845382864,13.94904304,4665.4,4665.3,1.2252]
[1757845383065,9.94444304,4665.4,4665.3,1.2252]
[1757845383294,15.14144304,4665.4,4665.3,1.2252]
[1757845384391,15.14160186,4665.4,4665.3,1.2252]
[1757845385898,11.58960186,4665.4,4665.3,1.2252]
[1757845386089,15.14160186,4665.4,4665.3,1.2252]
[1757845386285,15.78500659,4665.4,4665.3,1.2252]
[1757845387886,11.58960186,4665.4,4665.3,1.2252]
[1757845388089,15.14060186,4665.4,4665.3,1.2252]
[1757845388775,14.67956447,4665.4,4665.3,1.2252]
[1757845388970,15.1407574,4665.4,4665.3,1.2252]
[1757845389174,14.67956447,4665.4,4665.3,1.2252]
[1757845394933,14.6797732,4665.4,4665.3,1.2252]
[1757845397621,11.1287732,4665.4,4665.3,1.2252]
[1757845397822,14.6797732,4665.4,4665.3,1.2252]
[1757845398048,14.6797732,4665.4,4665.3,0.7755]
[1757845398235,14.6797732,4665.4,4665.3,0.3083]
[1757845398843,17.20922244,4665.4,4665.3,0.001]
[1757845399043,17.65322244,4665.4,4665.3,0.001]
[1757845399249,18.15042244,4665.4,4665.3,0.001]
[1757845404974,21.61142924,4665.4,4665.3,0.001]
[1757845411979,22.18784291,4665.4,4665.3,0.001]
[1757845415374,21.61142924,4665.4,4665.3,0.001]
[1757845416255,22.18784291,4665.4,4665.3,0.001]
[1757845417783,2.14389846,4664.4,4664.3,0.001]
[1757845417952,7.46006173,4664.4,4664.3,0.20168445]
[1757845418151,7.66023273,4664.4,4664.3,0.20168445]
[1757845418545,8.30379894,4664.4,4664.3,0.49568445]
[1757845418746,9.34856178,4664.4,4664.3,0.49568445]
[1757845421551,9.34849008,4664.4,4664.3,0.49562521]
[1757845421782,9.02822751,4664.4,4664.3,0.295]
[1757845421968,9.45326122,4664.4,4664.3,0.295]
[1757845422279,9.65341294,4664.4,4664.3,1.2431]
[1757845422482,9.45326122,4664.4,4664.3,1.2431]
[1757845422986,9.65341294,4664.4,4664.3,1.44372442]
[1757845423152,9.45326122,4664.4,4664.3,1.44372442]
[1757845424285,6.10241437,4664.4,4664.3,0.7922]
[1757845424445,9.77350748,4664.4,4664.3,1.4437279]
[1757845427191,9.77350748,4664.4,4664.3,0.4956279]
[1757845429967,9.77350748,4664.4,4664.3,0.295]
[1757845430168,10.08380748,4664.4,4664.3,0.001]
[1757845434295,11.45908471,4664.4,4664.3,0.001]
[1757845434502,18.47908471,4664.4,4664.3,0.001]
[1757845434997,21.47908471,4664.4,4664.3,0.001]
[1757845439697,21.48928471,4664.4,4664.3,0.001]
[1757845440705,16.70378471,4664.4,4664.3,0.303]
[1757845441076,20.25478471,4664.4,4664.3,0.303]
[1757845445470,20.25478471,4664.4,4664.3,0.001]
[1757845447378,20.54358471,4664.4,4664.3,0.001]
[1757845454308,21.00828471,4664.4,4664.3,0.001]
[1757845455084,21.48248471,4664.4,4664.3,0.001]
[1757845455298,23.56048471,4664.4,4664.3,0.001]
[1757845456325,2.14435819,4663.4,4663.3,1e-08]
[1757845456527,11.19031602,4663.4,4663.3,1e-08]
[1757845456824,13.06584518,4663.4,4663.3,1e-08]
[1757845457613,3.0,4663.3,4662.8,1e-08]
[1757845457925,3.0,4663.0,4662.8,1e-08]
[1757845458110,9.12268124,4662.9,4662.8,1e-08]
[1757845458313,10.23033439,4662.9,4662.8,1e-08]
[1757845459417,10.67163439,4662.9,4662.8,1e-08]
[1757845463724,17.69163439,4662.9,4662.8,1e-08]
[1757845463895,18.06857757,4662.9,4662.8,1e-08]
[1757845464096,20.14657757,4662.9,4662.8,1e-08]
[1757845464627,20.60617706,4662.9,4662.8,1e-08]
[1757845467842,22.86117706,4662.9,4662.8,1e-08]
[1757845468136,23.43470825,4662.9,4662.8,1e-08]
[1757845468627,23.43306337,4662.9,4662.8,1e-08]
[1757845469046,22.85953218,4662.9,4662.8,1e-08]
[1757845472244,22.85953218,4662.9,4661.3,0.4875]
[1757845472245,2.14523222,4661.5,4661.3,0.4875]
[1757845472454,7.34427824,4661.4,4661.3,0.4875]
[1757845472954,2.14550837,4660.9,4660.8,0.00100001]
[1757845473240,5.69850837,4660.9,4660.8,0.00100001]
[1757845473432,5.69850837,4660.9,4660.8,0.28620001]
[1757845473615,5.7843802,4660.9,4660.8,0.28620001]
[1757845473821,5.7843802,4660.9,4660.8,0.77370001]
[1757845474236,5.7843802,4660.9,4660.8,1.15210001]
[1757845474739,6.21466559,4660.9,4660.8,1.15210001]
[1757845476709,6.21466559,4660.9,4660.8,0.00100001]
[1757845476917,2.14573856,4660.4,4660.3,0.001]
[1757845477146,10.36873856,4660.4,4660.3,0.001]
[1757845477723,10.85623856,4660.4,4660.3,0.001]
[1757845478748,10.85623856,4660.4,4660.3,0.2862]
[1757845480019,7.28023856,4660.4,4660.3,0.7737]
[1757845480355,10.85923856,4660.4,4660.3,1.1521]
[1757845480852,5.63323856,4660.4,4660.3,1.1521]
[1757845481014,10.37173856,4660.4,4660.3,1.14245182]
[1757845481450,6.79273856,4660.4,4660.3,1.14245182]
[1757845481637,10.37273856,4660.4,4660.3,1.14245182]
[1757845483831,2.14592274,4660.0,4659.8,0.001]
[1757845484058,5.72492274,4660.0,4659.8,0.001]
[1757845484434,5.72492274,4660.0,4659.9,0.7737]
[1757845485654,5.72492274,4660.0,4659.9,0.001]
[1757845485867,6.03012274,4660.0,4659.9,0.001]
[1757845486233,5.72492274,4660.0,4659.9,0.001]
[1757845486776,8.72492274,4660.0,4659.9,0.001]
[1757845486977,9.03012274,4660.0,4659.9,0.001]
[1757845487334,10.63733844,4660.0,4659.9,0.001]
[1757845487936,9.89483844,4660.0,4659.9,0.001]
[1757845488175,9.89483844,4660.0,4659.9,0.3141]
[1757845488674,8.72492274,4660.0,4659.9,0.3141]
[1757845488841,8.72492274,4660.0,4659.9,0.001]
[1757845489868,8.72492274,4660.0,4659.9,0.3141]
[1757845490571,9.18562274,4660.0,4659.9,0.001]
[1757845491270,9.92812274,4660.0,4659.9,0.001]
[1757845491467,11.13552025,4660.0,4659.9,0.001]
[1757845492875,10.39302025,4660.0,4659.9,0.7748]
[1757845493172,9.18562274,4660.0,4659.9,0.7748]
[1757845493982,9.49082274,4660.0,4659.9,0.001]
[1757845494174,9.92812274,4660.0,4659.9,0.001]
[1757845494882,9.18562274,4660.0,4659.9,0.001]
[1757845495075,9.18562274,4660.0,4659.9,0.3141]
[1757845496143,5.60662274,4660.0,4659.9,0.3141]
[1757845496338,8.72692274,4660.0,4659.9,1.1446]
[1757845496566,8.72692274,4660.0,4659.9,0.7748]
[1757845498863,9.84581025,4660.0,4659.9,0.7748]
[1757845499182,8.72692274,4660.0,4659.9,0.3141]
[1757845499768,8.72692274,4660.0,4659.9,0.001]
[1757845499970,9.04591918,4660.0,4659.9,0.001]
[1757845500373,9.04591918,4660.0,4659.9,0.2973]
[1757845502393,9.52531918,4660.0,4659.9,0.2973]
[1757845504375,9.52531918,4660.0,4659.9,0.001]
[1757845505794,9.52532288,4660.0,4659.9,0.001]
[1757845506169,9.52532288,4660.0,4659.9,0.2973]
[1757845506375,9.04592288,4660.0,4659.9,0.7767]
[1757845507993,2.46492288,4660.0,4659.9,0.7767]
[1757845508181,2.14592274,4660.0,4659.9,1.1465]
[1757845508489,5.84654724,4660.0,4659.9,1.1465]
[1757845508694,5.84654724,4660.0,4659.9,0.7767]
[1757845509365,5.84660847,4660.0,4659.9,0.7767]
[1757845509778,0.11968573,4660.0,4659.9,0.7767]
[1757845509992,3.581,4660.0,4659.9,1.1465]
[1757845510310,5.72692274,4660.0,4659.9,0.7767]
[1757845510463,5.84660847,4660.0,4659.9,1.1465]
[1757845510668,5.84660847,4660.0,4659.9,0.7767]
[1757845512201,5.84660847,4660.0,4659.9,0.2973]
[1757845513786,5.84660847,4660.0,4659.9,0.001]
[1757845514099,5.84660847,4660.0,4659.9,0.2973]
[1757845514699,5.84660847,4660.0,4659.9,0.001]
[1757845515998,5.84660847,4660.0,4659.9,0.2973]
[1757845517367,0.11968573,4660.0,4659.9,0.7776]
[1757845517573,3.58,4660.0,4659.9,1.1474]
[1757845518181,5.227,4660.0,4659.9,1.1474]
[1757845518385,7.49260847,4660.0,4659.9,1.1474]
[1757845518586,5.34668573,4660.0,4659.9,1.1474]
[1757845518839,1.76668573,4660.0,4659.9,1.1474]
[1757845519118,1.647,4660.0,4659.9,0.89244]
[1757845519296,5.226,4660.0,4659.9,0.89244]
[1757845519467,5.226,4660.0,4659.9,1.26224]
[1757845519669,7.66732274,4660.0,4659.9,0.001]
[1757845519885,8.12452274,4660.0,4659.9,0.001]
[1757845520209,8.24433201,4660.0,4659.9,0.001]
[1757845520879,8.24433228,4660.0,4659.9,0.001]
[1757845521772,8.71333228,4660.0,4659.9,0.001]
[1757845522811,8.24433228,4660.0,4659.9,0.001]
[1757845523133,8.24435106,4660.0,4659.9,0.001]
[1757845523441,7.49175106,4660.0,4659.9,0.001]
[1757845525019,7.49175106,4660.0,4659.9,0.3159]
[1757845525439,7.49175106,4660.0,4659.9,0.7962]
[1757845525642,7.49175106,4660.0,4659.9,0.3159]
[1757845525847,7.49175106,4660.0,4659.9,0.001]
[1757845526960,7.78715106,4660.0,4659.9,0.001]
[1757845527272,8.24435106,4660.0,4659.9,0.001]
[1757845528953,7.78715106,4660.0,4659.9,0.001]
[1757845529276,8.24435106,4660.0,4659.9,0.001]
[1757845532346,7.49175106,4660.0,4659.9,0.001]
[1757845533066,7.49175106,4660.0,4659.9,0.7962]
[1757845533259,3.91275106,4660.0,4659.9,0.7962]
[1757845533463,7.49175106,4660.0,4659.9,0.7962]
[1757845534148,3.91275106,4660.0,4659.9,0.3159]
[1757845534367,7.49175106,4660.0,4659.9,0.3159]
[1757845534880,7.49175106,4660.0,4659.9,0.001]
[1757845537385,7.69187298,4660.0,4659.9,0.001]
[1757845541905,4.11287298,4660.0,4659.9,0.3159]
[1757845542112,7.48975106,4660.0,4659.9,0.3159]
[1757845542277,5.34382832,4660.0,4659.9,0.7962]
[1757845542477,7.48975106,4660.0,4659.9,0.7962]
[1757845542876,5.34382832,4660.0,4659.9,0.7962]
[1757845543301,7.48975106,4660.0,4659.9,0.7962]
[1757845543501,5.34382832,4660.0,4659.9,0.7962]
[1757845543802,5.34282832,4660.0,4659.9,1.166]
[1757845544191,5.34282832,4660.0,4659.9,0.7962]
[1757845545706,5.34282832,4660.0,4659.9,0.3159]
[1757845547411,7.48875106,4660.0,4659.9,0.3159]
[1757845547776,5.34282832,4660.0,4659.9,0.3159]
[1757845548590,7.48875106,4660.0,4659.9,0.001]
[1757845549924,7.48875106,4660.0,4659.9,0.20193248]
[1757845551919,8.24775106,4660.0,4659.9,0.20193248]
[1757845552119,8.71015106,4660.0,4659.9,0.20193248]
[1757845552525,8.24885106,4660.0,4659.9,0.20193248]
[1757845557416,7.48875106,4660.0,4659.9,0.20193248]
[1757845558427,5.34282832,4660.0,4659.9,0.50503248]
[1757845559126,5.32282832,4660.0,4659.9,0.50503248]
[1757845560341,1.74682832,4660.0,4659.9,0.50503248]
[1757845560545,1.627,4660.0,4659.9,0.50503248]
[1757845560703,5.198,4660.0,4659.9,0.50503248]
[1757845560907,5.31782832,4660.0,4659.9,0.50503248]
[1757845561825,5.31803838,4660.0,4659.9,0.50498263]
[1757845563703,1.74703838,4660.0,4659.9,0.50498263]
[1757845564057,5.198,4660.0,4659.9,0.50498263]
[1757845564353,5.31803838,4660.0,4659.9,0.50498263]
[1757845564498,5.31803838,4660.0,4659.9,0.20188263]
[1757845564946,5.31804889,4660.0,4659.9,0.20188263]
[1757845565508,8.18047163,4660.0,4659.9,0.20188263]
[1757845565704,8.63377163,4660.0,4659.9,0.20188263]
[1757845565905,9.71193431,4660.0,4659.9,0.20188263]
[1757845567040,9.91381694,4660.0,4659.9,0.20188263]
[1757845569551,9.91383141,4660.0,4659.9,0.20194294]
[1757845571138,9.91383141,4660.0,4659.9,0.001]
[1757845573227,9.79376805,4660.0,4659.9,0.001]
[1757845573428,9.91385079,4660.0,4659.9,0.001]
[1757845574228,8.40568811,4660.0,4659.9,0.001]
[1757845574418,8.38138811,4660.0,4659.9,0.001]
[1757845575253,8.83468811,4660.0,4659.9,0.001]
[1757845577020,8.83668811,4660.0,4659.9,0.001]
[1757845578830,9.03683847,4660.0,4659.9,0.001]
[1757845579851,7.86603847,4660.0,4659.9,0.001]
[1757845581437,8.34043847,4660.0,4659.9,0.001]
[1757845582119,7.86603847,4660.0,4659.9,0.001]
[1757845582347,7.86503847,4660.0,4659.9,0.001]
[1757845584255,8.33943847,4660.0,4659.9,0.001]
[1757845586028,8.64813847,4660.0,4659.9,0.001]
[1757845587657,4.29703847,4660.0,4659.9,0.001]
[1757845587828,7.97258811,4660.0,4659.9,0.001]
[1757845588028,8.64713847,4660.0,4659.9,0.001]
[1757845588726,2.15111573,4660.0,4659.9,0.001]
[1757845589067,7.46200548,4660.0,4659.9,0.3088]
[1757845589231,7.66215584,4660.0,4659.9,0.001]
[1757845591658,8.86035584,4660.0,4659.9,0.001]
[1757845591836,9.96976244,4660.0,4659.9,0.001]
[1757845592029,10.05564441,4660.0,4659.9,0.001]
[1757845592637,10.05560519,4660.0,4659.9,0.001]
[1757845595662,20.07560519,4660.0,4659.9,0.001]
[1757845596029,20.53680157,4660.0,4659.9,0.001]
[1757845596433,20.53676824,4660.0,4659.9,0.001]
[1757845597255,20.07557186,4660.0,4659.9,0.001]
[1757845599470,20.53649892,4660.0,4659.9,0.001]
[1757845599674,22.79449892,4660.0,4659.9,0.001]
[1757845599876,15.77449892,4660.0,4659.9,0.001]
[1757845600075,2.14615302,4659.5,4659.4,1e-08]
[1757845600250,9.48003621,4659.5,4659.4,1e-08]
[1757845600453,10.87822337,4659.5,4659.4,1e-08]
[1757845600754,11.35952337,4659.5,4659.4,1e-08]
[1757845604092,13.61752337,4659.5,4659.4,1e-08]
[1757845605383,20.43753621,4659.5,4659.4,1e-08]
[1757845606462,21.72553621,4659.5,4659.4,1e-08]
[1757845608085,21.92521918,4659.5,4659.4,1e-08]
[1757845609358,21.02031918,4659.5,4659.4,1e-08]
[1757845609558,21.47071918,4659.5,4659.4,1e-08]
[1757845609987,21.96941918,4659.5,4659.4,1e-08]
[1757845611094,19.71141918,4659.5,4659.4,1e-08]
[1757845611274,16.14141918,4659.5,4659.4,1e-08]
[1757845611467,19.70941918,4659.5,4659.4,1e-08]
[1757845612184,19.21071918,4659.5,4659.4,1e-08]
[1757845612592,19.20971918,4659.5,4659.4,1e-08]
[1757845613897,15.64271918,4659.5,4659.4,1e-08]
[1757845614201,19.21171918,4659.5,4659.4,1e-08]
[1757845618005,18.76131918,4659.5,4659.4,1e-08]
[1757845618370,19.21941918,4659.5,4659.4,1e-08]
[1757845619599,19.21935251,4659.5,4659.4,1e-08]
[1757845621567,19.71295251,4659.5,4659.4,1e-08]
[1757845622200,19.71301763,4659.5,4659.4,1e-08]
[1757845625292,20.17361226,4659.5,4659.4,1e-08]
[1757845627013,19.68001226,4659.5,4659.4,1e-08]
[1757845633804,14.07361226,4659.5,4659.4,0.28640001]
[1757845634007,16.99272136,4659.5,4659.4,0.75970001]
[1757845634837,17.74042136,4659.5,4659.4,1e-08]
[1757845635229,17.74058726,4659.5,4659.4,1e-08]
[1757845635945,16.99288726,4659.5,4659.4,0.28640001]
[1757845636311,16.99288726,4659.5,4659.4,1e-08]
[1757845636636,19.60202134,4659.5,4659.4,1e-08]
[1757845636846,20.51112134,4659.5,4659.4,1e-08]
[1757845638643,19.60202134,4659.5,4659.4,1e-08]
[1757845638812,20.03812134,4659.5,4659.4,1e-08]
[1757845641434,20.03847509,4659.5,4659.4,1e-08]
[1757845641750,2.14684413,4658.0,4657.9,0.481]
[1757845641927,7.35784413,4658.0,4657.9,0.481]
[1757845642120,7.35784413,4658.0,4655.8,4.06149931]
[1757845642121,5.33104354,4658.0,4657.5,0.481]
[1757845642310,2.14693632,4657.8,4657.6,0.481]
[1757845642516,3.564,4657.7,4656.1,2.14771993]
[1757845642710,2.14731471,4657.0,4656.9,0.481]
[1757845642945,5.71131471,4657.0,4656.9,0.481]
[1757845644973,3.564,4657.0,4656.9,0.481]
[1757845645749,3.563,4657.0,4656.9,0.481]
[1757845645937,1.647,4657.1,4656.9,0.481]
[1757845646140,3.563,4657.0,4656.9,0.50247351]
[1757845646451,3.563,4657.0,4656.9,0.481]
[1757845646665,3.563,4657.0,4656.9,0.75183517]
[1757845648962,3.563,4657.0,4656.9,0.481]
[1757845656155,1.648,4657.5,4656.9,0.481]
[1757845656356,1.648,4657.5,4657.0,0.02147305]
[1757845656575,3.563,4657.4,4657.0,0.02147305]
[1757845656854,3.563,4657.4,4657.1,0.481]
[1757845657025,5.71012186,4657.4,4657.2,0.02147212]
[1757845657233,5.7101284,4657.4,4657.3,0.481]
[1757845657433,3.563,4657.4,4657.3,0.481]
[1757845657851,3.79508468,4657.5,4657.3,0.481]
[1757845658025,3.79508468,4657.5,4657.4,0.0214712]
[1757845658232,7.35808468,4657.5,4657.4,0.5024712]
[1757845658476,7.35808468,4657.5,4657.4,0.481]
[1757845659026,1.648,4657.5,4657.4,0.481]
[1757845659228,5.211,4657.5,4657.4,0.481]
[1757845660061,7.35807461,4657.5,4657.4,0.481]
[1757845660389,5.211,4657.5,4657.4,0.481]
[1757845660660,7.35807461,4657.5,4657.4,0.481]
[1757845661065,5.211,4657.5,4657.4,0.481]
[1757845661446,7.35807461,4657.5,4657.4,0.481]
[1757845662267,5.211,4657.5,4657.4,0.481]
[1757845663897,2.14703319,4657.6,4657.4,0.481]
[1757845663898,1.648,4658.2,4657.4,1.273]
[1757845664101,3.563,4658.1,4657.5,0.6083]
[1757845664271,3.563,4658.1,4657.6,0.481]
[1757845664472,0.1072,4657.6,4657.5,2.27437461]
[1757845664673,3.6702,4657.6,4657.5,0.1273]
[1757845665005,3.6702,4657.6,4657.5,0.6083]
[1757845666967,3.6702,4657.6,4657.5,2.75537461]
[1757845672077,3.6702,4657.6,4657.5,0.1273]
[1757845672479,3.6702,4657.6,4657.5,0.6047]
[1757845673618,3.6702,4657.6,4657.5,2.75177461]
[1757845674207,0.1072,4657.6,4657.5,2.75177461]
[1757845675381,0.1072,4657.6,4657.5,2.77324535]
[1757845676809,0.1072,4657.6,4657.5,2.75177461]
[1757845677316,0.1072,4657.6,4657.5,6.56524535]
[1757845677529,0.4321,4658.7,4657.6,0.792]
[1757845677728,1.708,4658.6,4658.3,2.14666887]
[1757845678306,1.648,4658.9,4658.0,2.14682909]
[1757845678307,1.648,4658.9,4658.4,3.40205979]
[1757845678606,3.571,4658.8,4658.4,3.40205979]
[1757845679432,0.4341,4658.5,4658.4,0.792]
[1757845679805,0.4341,4658.5,4658.4,2.93865979]
[1757845680006,0.4341,4658.5,4658.4,3.44720357]
[1757845680636,0.002,4658.5,4658.4,0.50854378]
[1757845680831,1.1964,4658.5,4657.8,0.792]